[Event "*** SCC Grand Prix: Titled Tuesday Blitz"]
[Site "Chess.com"]
[Date "2020.10.06"]
[Round "3"]
[White "gmpeter008"]
[Black "salomez"]
[Result "1-0"]
[WhiteElo "2367"]
[BlackElo "2199"]
[TimeControl "180+1"]
[EndTime "10:25:51 PDT"]
[Termination "gmpeter008 won by resignation"]

1. d4 {[%clk 0:03:00.9]} 1... Nf6 {[%clk 0:02:59.3]} 2. Bf4 {[%clk 0:03:00.1]}
2... g6 {[%clk 0:02:52.6]} 3. Nf3 {[%clk 0:02:59.5]} 3... Bg7 {[%clk 0:02:52.6]}
4. Nbd2 {[%clk 0:02:59.4]} 4... d6 {[%clk 0:02:46.1]} 5. g3 {[%clk 0:02:58.6]}
5... O-O {[%clk 0:02:43.9]} 6. Bg2 {[%clk 0:02:58.9]} 6... c5 {[%clk 0:02:43.7]}
7. dxc5 {[%clk 0:02:58]} 7... dxc5 {[%clk 0:02:43.5]} 8. c3 {[%clk 0:02:55.2]}
8... Nc6 {[%clk 0:02:43.4]} 9. O-O {[%clk 0:02:54.9]} 9... h6 {[%clk 0:02:33.6]}
10. Nc4 {[%clk 0:02:54.2]} 10... Be6 {[%clk 0:02:31.3]} 11. Nce5 {[%clk
0:02:53.3]} 11... Bd5 {[%clk 0:02:19.8]} 12. c4 {[%clk 0:02:48.3]} 12... Be4
{[%clk 0:02:18.6]} 13. Qb3 {[%clk 0:02:42.7]} 13... Qc8 {[%clk 0:02:04]} 14.
Rfd1 {[%clk 0:02:39.5]} 14... Nxe5 {[%clk 0:01:24]} 15. Nxe5 {[%clk 0:02:33.8]}
15... Bxg2 {[%clk 0:01:22.1]} 16. Kxg2 {[%clk 0:02:34.7]} 16... Nh5 {[%clk
0:01:17.9]} 17. Qf3 {[%clk 0:02:12.1]} 17... Nxf4+ {[%clk 0:01:16.3]} 18. gxf4
{[%clk 0:02:11.4]} 18... b6 {[%clk 0:01:06.2]} 19. Rd5 {[%clk 0:02:06.7]} 19...
Qe6 {[%clk 0:01:01.4]} 20. b3 {[%clk 0:02:01.1]} 20... Rad8 {[%clk 0:00:54.1]}
21. Rad1 {[%clk 0:01:59.5]} 21... Rd6 {[%clk 0:00:45.7]} 22. Rxd6 {[%clk
0:01:25.5]} 22... exd6 {[%clk 0:00:43.5]} 23. Ng4 {[%clk 0:01:26]} 23... h5
{[%clk 0:00:25.6]} 24. Ne3 {[%clk 0:01:25.1]} 24... Bd4 {[%clk 0:00:24.7]} 25.
Nd5 {[%clk 0:01:24.2]} 25... Re8 {[%clk 0:00:24.2]} 26. e3 {[%clk 0:01:23.6]}
26... Bg7 {[%clk 0:00:22.2]} 27. Nc7 {[%clk 0:01:15.2]} 1-0

[Event "*** SCC Grand Prix: Titled Tuesday Blitz"]
[Site "Chess.com"]
[Date "2020.10.06"]
[Round "3"]
[White "Butterfly"]
[Black "doons21"]
[Result "0-1"]
[WhiteElo "2408"]
[BlackElo "2606"]
[TimeControl "180+1"]
[EndTime "10:25:53 PDT"]
[Termination "doons21 won by resignation"]

1. d4 {[%clk 0:03:00.9]} 1... Nf6 {[%clk 0:02:59.8]} 2. Nf3 {[%clk 0:03:00.5]}
2... g6 {[%clk 0:02:59.4]} 3. Nbd2 {[%clk 0:02:59.2]} 3... d5 {[%clk 0:02:59]}
4. e3 {[%clk 0:02:58.5]} 4... Bg7 {[%clk 0:02:57.8]} 5. b4 {[%clk 0:02:58.8]}
5... O-O {[%clk 0:02:56.9]} 6. Bd3 {[%clk 0:02:59]} 6... Re8 {[%clk 0:02:54.6]}
7. O-O {[%clk 0:02:58.5]} 7... Nc6 {[%clk 0:02:54.9]} 8. a3 {[%clk 0:02:38.9]}
8... e5 {[%clk 0:02:51.8]} 9. b5 {[%clk 0:02:30.6]} 9... e4 {[%clk 0:02:51.7]}
10. bxc6 {[%clk 0:02:29.1]} 10... bxc6 {[%clk 0:02:30.3]} 11. Be2 {[%clk
0:02:20.4]} 11... exf3 {[%clk 0:02:29.8]} 12. Bxf3 {[%clk 0:02:17.8]} 12... Rb8
{[%clk 0:02:20]} 13. c4 {[%clk 0:02:14.7]} 13... h5 {[%clk 0:01:51.7]} 14. Qa4
{[%clk 0:02:10.3]} 14... Qd6 {[%clk 0:01:47.8]} 15. cxd5 {[%clk 0:01:56.8]}
15... cxd5 {[%clk 0:01:42.9]} 16. Qxa7 {[%clk 0:01:53.4]} 16... Ng4 {[%clk
0:01:30.9]} 17. g3 {[%clk 0:01:38.5]} 17... Rb6 {[%clk 0:01:25.5]} 18. Qa5
{[%clk 0:01:31.9]} 18... h4 {[%clk 0:01:18.5]} 19. Qxd5 {[%clk 0:01:29.8]} 19...
hxg3 {[%clk 0:01:11.9]} 20. hxg3 {[%clk 0:01:24.2]} 20... Qe7 {[%clk 0:00:59.8]}
21. Qe4 {[%clk 0:01:08.8]} 21... Qd8 {[%clk 0:00:54.7]} 22. Qf4 {[%clk
0:01:04.6]} 22... Bh6 {[%clk 0:00:54.5]} 23. Nc4 {[%clk 0:00:55.6]} 23... Bxf4
{[%clk 0:00:52.8]} 24. exf4 {[%clk 0:00:52.8]} 24... Rb3 {[%clk 0:00:46.3]} 25.
Bg2 {[%clk 0:00:51]} 25... Qxd4 {[%clk 0:00:45.5]} 26. Nb2 {[%clk 0:00:47.3]}
26... Qh8 {[%clk 0:00:42.1]} 0-1

[Event "*** SCC Grand Prix: Titled Tuesday Blitz"]
[Site "Chess.com"]
[Date "2020.10.06"]
[Round "3"]
[White "markberk"]
[Black "BikingBrian"]
[Result "1-0"]
[WhiteElo "2398"]
[BlackElo "2201"]
[TimeControl "180+1"]
[EndTime "10:25:53 PDT"]
[Termination "markberk won by checkmate"]

1. Nf3 {[%clk 0:03:00.9]} 1... g6 {[%clk 0:02:59]} 2. e4 {[%clk 0:03:00]} 2...
c5 {[%clk 0:02:58.3]} 3. d4 {[%clk 0:02:58.9]} 3... cxd4 {[%clk 0:02:58.4]} 4.
Qxd4 {[%clk 0:02:56.9]} 4... Nf6 {[%clk 0:02:58.1]} 5. e5 {[%clk 0:02:56.5]}
5... Nc6 {[%clk 0:02:58.4]} 6. Qa4 {[%clk 0:02:56.1]} 6... Nd5 {[%clk
0:02:58.7]} 7. Bb5 {[%clk 0:02:53]} 7... Bg7 {[%clk 0:02:51.9]} 8. O-O {[%clk
0:02:46.1]} 8... O-O {[%clk 0:02:50.2]} 9. Bxc6 {[%clk 0:02:33.5]} 9... dxc6
{[%clk 0:02:48.4]} 10. Qh4 {[%clk 0:02:31]} 10... e6 {[%clk 0:02:41.7]} 11. Bg5
{[%clk 0:02:23.3]} 11... Qc7 {[%clk 0:02:40.3]} 12. c4 {[%clk 0:02:16.2]} 12...
Nb6 {[%clk 0:02:27.5]} 13. Bf6 {[%clk 0:02:01.7]} 13... Nd7 {[%clk 0:02:25.3]}
14. Nc3 {[%clk 0:01:39]} 14... Re8 {[%clk 0:02:08.7]} 15. Bxg7 {[%clk
0:01:16.7]} 15... Kxg7 {[%clk 0:02:07.6]} 16. Ne4 {[%clk 0:01:11.8]} 16... Nf8
{[%clk 0:01:55.8]} 17. Rad1 {[%clk 0:00:53.2]} 17... Bd7 {[%clk 0:01:43.1]} 18.
Nf6 {[%clk 0:00:52]} 18... Red8 {[%clk 0:01:39.8]} 19. Ng5 {[%clk 0:00:48.8]}
19... Be8 {[%clk 0:01:29.7]} 20. Ngxh7 {[%clk 0:00:37.7]} 20... Rxd1 {[%clk
0:01:29.6]} 21. Rxd1 {[%clk 0:00:35.3]} 21... Nxh7 {[%clk 0:01:14]} 22. Qxh7+
{[%clk 0:00:33.1]} 22... Kf8 {[%clk 0:01:14.3]} 23. Qh8+ {[%clk 0:00:30.2]}
23... Ke7 {[%clk 0:01:14.6]} 24. Ng8+ {[%clk 0:00:28.6]} 24... Kf8 {[%clk
0:01:14.9]} 25. Nf6+ {[%clk 0:00:20.7]} 25... Ke7 {[%clk 0:01:15]} 26. Qh4
{[%clk 0:00:14.2]} 26... Kf8 {[%clk 0:01:13.2]} 27. Qh6+ {[%clk 0:00:12.4]}
27... Ke7 {[%clk 0:01:13.4]} 28. Ng8# {[%clk 0:00:11.5]} 1-0

[Event "*** SCC Grand Prix: Titled Tuesday Blitz"]
[Site "Chess.com"]
[Date "2020.10.06"]
[Round "3"]
[White "Politov_Pavel"]
[Black "vladgoncharov"]
[Result "0-1"]
[WhiteElo "2249"]
[BlackElo "2440"]
[TimeControl "180+1"]
[EndTime "10:25:57 PDT"]
[Termination "vladgoncharov won by resignation"]

1. d4 {[%clk 0:03:00.9]} 1... Nf6 {[%clk 0:02:50.7]} 2. Nc3 {[%clk 0:03:01.8]}
2... d5 {[%clk 0:02:49.8]} 3. Bf4 {[%clk 0:03:02]} 3... c6 {[%clk 0:02:48.9]} 4.
Nf3 {[%clk 0:03:02.4]} 4... h6 {[%clk 0:02:47.1]} 5. Ne5 {[%clk 0:03:01]} 5...
Bf5 {[%clk 0:02:46.4]} 6. e3 {[%clk 0:03:01.2]} 6... e6 {[%clk 0:02:46]} 7. Bd3
{[%clk 0:03:01.6]} 7... Bxd3 {[%clk 0:02:43.2]} 8. Qxd3 {[%clk 0:03:02.5]} 8...
Bb4 {[%clk 0:02:41.7]} 9. O-O {[%clk 0:03:02.5]} 9... O-O {[%clk 0:02:40.4]} 10.
Ne2 {[%clk 0:03:01.8]} 10... Nbd7 {[%clk 0:02:38.1]} 11. c4 {[%clk 0:03:01.8]}
11... Nxe5 {[%clk 0:02:32.8]} 12. Bxe5 {[%clk 0:03:02.7]} 12... Nd7 {[%clk
0:02:32.1]} 13. Bg3 {[%clk 0:03:02.1]} 13... Qe7 {[%clk 0:02:27]} 14. c5 {[%clk
0:02:59.5]} 14... e5 {[%clk 0:02:15.4]} 15. Qb3 {[%clk 0:02:46]} 15... Bxc5
{[%clk 0:02:11.1]} 16. dxc5 {[%clk 0:02:43.5]} 16... Nxc5 {[%clk 0:02:12]} 17.
Qa3 {[%clk 0:02:43.1]} 17... b6 {[%clk 0:02:08.8]} 18. Nd4 {[%clk 0:02:32.7]}
18... Qf6 {[%clk 0:01:52.7]} 19. Nf3 {[%clk 0:02:17.9]} 19... Rfe8 {[%clk
0:01:49.4]} 20. Rab1 {[%clk 0:02:17.2]} 20... g5 {[%clk 0:01:40.4]} 21. Rbc1
{[%clk 0:02:12.3]} 21... Nd7 {[%clk 0:01:28.6]} 22. Qc3 {[%clk 0:02:09.1]} 22...
Re6 {[%clk 0:01:26.6]} 23. b4 {[%clk 0:02:05.4]} 23... a5 {[%clk 0:01:16.7]} 24.
a3 {[%clk 0:01:55.7]} 24... axb4 {[%clk 0:01:16.5]} 25. axb4 {[%clk 0:01:56.6]}
25... c5 {[%clk 0:01:13.5]} 26. bxc5 {[%clk 0:01:54.1]} 26... bxc5 {[%clk
0:01:13.5]} 27. Rfd1 {[%clk 0:01:38.1]} 27... d4 {[%clk 0:01:09.4]} 28. exd4
{[%clk 0:01:35.1]} 28... exd4 {[%clk 0:01:10.3]} 29. Qb3 {[%clk 0:01:27.4]}
29... Rae8 {[%clk 0:01:09.9]} 30. h3 {[%clk 0:01:21.1]} 30... Qe7 {[%clk
0:01:08.6]} 31. Qb7 {[%clk 0:01:17.7]} 31... f5 {[%clk 0:01:03.4]} 32. Bc7
{[%clk 0:01:10]} 32... g4 {[%clk 0:01:00.4]} 33. hxg4 {[%clk 0:01:07.7]} 33...
fxg4 {[%clk 0:01:00.2]} 34. Nh2 {[%clk 0:01:04.2]} 34... h5 {[%clk 0:01:00.1]}
35. Qd5 {[%clk 0:01:02.6]} 35... Qf7 {[%clk 0:00:57.1]} 36. Bg3 {[%clk 0:00:53]}
36... Re1+ {[%clk 0:00:54.6]} 0-1

[Event "*** SCC Grand Prix: Titled Tuesday Blitz"]
[Site "Chess.com"]
[Date "2020.10.06"]
[Round "3"]
[White "exoticprincess"]
[Black "hungrycaterpillar4"]
[Result "0-1"]
[WhiteElo "2877"]
[BlackElo "2624"]
[TimeControl "180+1"]
[EndTime "10:26:08 PDT"]
[Termination "hungrycaterpillar4 won on time"]

1. d4 {[%clk 0:03:00.9]} 1... d5 {[%clk 0:03:00.3]} 2. Nc3 {[%clk 0:03:01]} 2...
Nf6 {[%clk 0:02:59.7]} 3. Bf4 {[%clk 0:03:01.3]} 3... e6 {[%clk 0:02:59.4]} 4.
Nb5 {[%clk 0:03:01.3]} 4... Na6 {[%clk 0:02:58.5]} 5. e3 {[%clk 0:03:01.7]} 5...
c6 {[%clk 0:02:56.7]} 6. Nc3 {[%clk 0:03:01.8]} 6... Nb8 {[%clk 0:02:57.1]} 7.
Nf3 {[%clk 0:03:00.1]} 7... Bd6 {[%clk 0:02:57.1]} 8. Bd3 {[%clk 0:02:58.8]}
8... O-O {[%clk 0:02:51]} 9. Ne5 {[%clk 0:02:58.8]} 9... a6 {[%clk 0:02:48.8]}
10. Qf3 {[%clk 0:02:58.4]} 10... c5 {[%clk 0:02:38.4]} 11. dxc5 {[%clk
0:02:57.6]} 11... Bxc5 {[%clk 0:02:38.4]} 12. O-O-O {[%clk 0:02:57.9]} 12... Nc6
{[%clk 0:02:35.8]} 13. Qh3 {[%clk 0:02:57.6]} 13... g6 {[%clk 0:02:33.5]} 14.
Qf3 {[%clk 0:02:40.8]} 14... Nxe5 {[%clk 0:02:07.1]} 15. Bxe5 {[%clk 0:02:40.5]}
15... Nd7 {[%clk 0:02:07.7]} 16. Bg3 {[%clk 0:02:30.5]} 16... Qf6 {[%clk
0:02:05.6]} 17. Qe2 {[%clk 0:02:26.6]} 17... b5 {[%clk 0:02:03.2]} 18. h4 {[%clk
0:02:25.5]} 18... Bb7 {[%clk 0:02:02.8]} 19. h5 {[%clk 0:02:25.2]} 19... Ba3
{[%clk 0:01:59.5]} 20. Qd2 {[%clk 0:02:13.9]} 20... Bxb2+ {[%clk 0:01:46]} 21.
Kxb2 {[%clk 0:02:12.6]} 21... b4 {[%clk 0:01:46.9]} 22. hxg6 {[%clk 0:02:10.8]}
22... fxg6 {[%clk 0:01:46.1]} 23. Rh4 {[%clk 0:01:54.4]} 23... a5 {[%clk
0:01:34.6]} 24. Rd4 {[%clk 0:01:48.9]} 24... bxc3+ {[%clk 0:01:21]} 25. Qxc3
{[%clk 0:01:49.8]} 25... Rfc8 {[%clk 0:01:19.7]} 26. Qa3 {[%clk 0:00:42.1]}
26... e5 {[%clk 0:01:16]} 27. Bxe5 {[%clk 0:00:24.9]} 27... Nxe5 {[%clk
0:01:14.8]} 28. Kc1 {[%clk 0:00:14.1]} 28... Qxf2 {[%clk 0:01:13.9]} 0-1

[Event "*** SCC Grand Prix: Titled Tuesday Blitz"]
[Site "Chess.com"]
[Date "2020.10.06"]
[Round "3"]
[White "Playgood28"]
[Black "GustavoJuarezF"]
[Result "1-0"]
[WhiteElo "2308"]
[BlackElo "2043"]
[TimeControl "180+1"]
[EndTime "10:26:13 PDT"]
[Termination "Playgood28 won on time"]

1. d4 {[%clk 0:03:00.9]} 1... d5 {[%clk 0:02:55.2]} 2. c4 {[%clk 0:03:00.3]}
2... e6 {[%clk 0:02:55.1]} 3. Nc3 {[%clk 0:03:00.1]} 3... Nf6 {[%clk 0:02:55]}
4. Bg5 {[%clk 0:03:00.3]} 4... Be7 {[%clk 0:02:53.5]} 5. cxd5 {[%clk 0:03:00.1]}
5... exd5 {[%clk 0:02:51.9]} 6. Qc2 {[%clk 0:02:58.7]} 6... c6 {[%clk
0:02:51.2]} 7. e3 {[%clk 0:02:58.3]} 7... Bf5 {[%clk 0:02:45.1]} 8. Qxf5 {[%clk
0:02:55.6]} 8... Nbd7 {[%clk 0:02:21.6]} 9. Bxf6 {[%clk 0:02:52.1]} 9... Nxf6
{[%clk 0:02:20.1]} 10. Nf3 {[%clk 0:02:50.2]} 10... Qb6 {[%clk 0:02:18]} 11. Qc2
{[%clk 0:02:49.3]} 11... O-O {[%clk 0:02:12.4]} 12. Bd3 {[%clk 0:02:48.5]} 12...
Rfe8 {[%clk 0:02:11.2]} 13. O-O {[%clk 0:02:47.6]} 13... h6 {[%clk 0:02:09.8]}
14. Rab1 {[%clk 0:02:44.3]} 14... Nd7 {[%clk 0:02:08.9]} 15. b4 {[%clk
0:02:41.5]} 15... a6 {[%clk 0:02:06.9]} 16. Na4 {[%clk 0:02:38.6]} 16... Qc7
{[%clk 0:01:56.8]} 17. Nc5 {[%clk 0:02:37.5]} 17... Nf6 {[%clk 0:01:51.7]} 18.
a4 {[%clk 0:02:34.7]} 18... Ng4 {[%clk 0:01:42.8]} 19. h3 {[%clk 0:02:32.2]}
19... Nf6 {[%clk 0:01:38.4]} 20. Rfc1 {[%clk 0:02:28.2]} 20... g5 {[%clk
0:01:28.9]} 21. Bf5 {[%clk 0:02:19.1]} 21... Bd8 {[%clk 0:01:14]} 22. b5 {[%clk
0:02:12.7]} 22... axb5 {[%clk 0:01:08.6]} 23. axb5 {[%clk 0:02:11.9]} 23... cxb5
{[%clk 0:00:35.7]} 24. Rxb5 {[%clk 0:02:03.1]} 24... b6 {[%clk 0:00:35.3]} 25.
Nd7 {[%clk 0:01:37.6]} 25... Qxc2 {[%clk 0:00:18.1]} 26. Nxf6+ {[%clk
0:01:36.7]} 26... Bxf6 {[%clk 0:00:18.3]} 27. Rxc2 {[%clk 0:01:35.6]} 27... Ra1+
{[%clk 0:00:18.3]} 28. Kh2 {[%clk 0:01:35.3]} 28... Rf1 {[%clk 0:00:11.9]} 29.
Rxb6 {[%clk 0:01:34.1]} 29... Kg7 {[%clk 0:00:11.1]} 30. Rb7 {[%clk 0:01:26.5]}
30... Ra8 {[%clk 0:00:08.7]} 31. Ne5 {[%clk 0:01:21.5]} 31... Bxe5+ {[%clk
0:00:03.8]} 32. dxe5 {[%clk 0:01:20.8]} 32... Raa1 {[%clk 0:00:02.1]} 33. e6
{[%clk 0:01:17.5]} 1-0

[Event "*** SCC Grand Prix: Titled Tuesday Blitz"]
[Site "Chess.com"]
[Date "2020.10.06"]
[Round "3"]
[White "chessplayer9919"]
[Black "andresgv36"]
[Result "1-0"]
[WhiteElo "2608"]
[BlackElo "2409"]
[TimeControl "180+1"]
[EndTime "10:26:14 PDT"]
[Termination "chessplayer9919 won on time"]

1. d4 {[%clk 0:03:00.9]} 1... Nf6 {[%clk 0:02:57.1]} 2. c4 {[%clk 0:03:00.1]}
2... e6 {[%clk 0:02:52.3]} 3. Nf3 {[%clk 0:02:59.5]} 3... c5 {[%clk 0:02:51.6]}
4. d5 {[%clk 0:02:58.3]} 4... exd5 {[%clk 0:02:52.1]} 5. cxd5 {[%clk 0:02:59.2]}
5... d6 {[%clk 0:02:52.7]} 6. Nc3 {[%clk 0:02:59.3]} 6... g6 {[%clk 0:02:53.1]}
7. e4 {[%clk 0:02:58.6]} 7... Bg7 {[%clk 0:02:53]} 8. Bb5+ {[%clk 0:02:57.6]}
8... Nbd7 {[%clk 0:02:49.5]} 9. a4 {[%clk 0:02:50.7]} 9... O-O {[%clk
0:02:49.1]} 10. O-O {[%clk 0:02:48.8]} 10... a6 {[%clk 0:02:39]} 11. Bd3 {[%clk
0:02:48]} 11... Nh5 {[%clk 0:02:34.9]} 12. Nd2 {[%clk 0:02:12.5]} 12... Qh4
{[%clk 0:01:15]} 13. Nc4 {[%clk 0:01:30.2]} 13... Ne5 {[%clk 0:01:11.9]} 14.
Nxe5 {[%clk 0:01:00.4]} 14... Bxe5 {[%clk 0:01:08.9]} 15. g3 {[%clk 0:01:00.8]}
15... Qh3 {[%clk 0:00:53.7]} 16. Re1 {[%clk 0:00:56]} 16... f5 {[%clk
0:00:28.5]} 17. Bf1 {[%clk 0:00:47.4]} 17... Qg4 {[%clk 0:00:23.7]} 18. f3
{[%clk 0:00:41.7]} 1-0

[Event "*** SCC Grand Prix: Titled Tuesday Blitz"]
[Site "Chess.com"]
[Date "2020.10.06"]
[Round "3"]
[White "LiamVrolijk"]
[Black "Lenyas66"]
[Result "1-0"]
[WhiteElo "2818"]
[BlackElo "2464"]
[TimeControl "180+1"]
[EndTime "10:26:20 PDT"]
[Termination "LiamVrolijk won by resignation"]

1. e4 {[%clk 0:03:00.9]} 1... d6 {[%clk 0:02:58.2]} 2. d4 {[%clk 0:03:00.6]}
2... Nf6 {[%clk 0:02:58.5]} 3. f3 {[%clk 0:03:00.5]} 3... e5 {[%clk 0:02:58]} 4.
dxe5 {[%clk 0:02:59.8]} 4... dxe5 {[%clk 0:02:57.8]} 5. Qxd8+ {[%clk 0:03:00.7]}
5... Kxd8 {[%clk 0:02:57.9]} 6. Bc4 {[%clk 0:03:00.6]} 6... Be6 {[%clk
0:02:54.4]} 7. Bxe6 {[%clk 0:02:53.9]} 7... fxe6 {[%clk 0:02:54.6]} 8. Nh3
{[%clk 0:02:54.8]} 8... h6 {[%clk 0:02:52.9]} 9. Nf2 {[%clk 0:02:48.9]} 9... Bc5
{[%clk 0:02:50.2]} 10. Nd3 {[%clk 0:02:48.7]} 10... Bd6 {[%clk 0:02:49.2]} 11.
a4 {[%clk 0:02:47.5]} 11... Nc6 {[%clk 0:02:47.8]} 12. Be3 {[%clk 0:02:45.7]}
12... Ke7 {[%clk 0:02:40.4]} 13. Nd2 {[%clk 0:02:43.8]} 13... Nd7 {[%clk
0:02:16.8]} 14. Ke2 {[%clk 0:02:35.3]} 14... Nb4 {[%clk 0:02:13]} 15. Nxb4
{[%clk 0:02:30.9]} 15... Bxb4 {[%clk 0:02:12.3]} 16. Nc4 {[%clk 0:02:31.6]}
16... a6 {[%clk 0:02:06.8]} 17. c3 {[%clk 0:02:17.8]} 17... Bd6 {[%clk
0:02:01.5]} 18. Rhd1 {[%clk 0:02:18.2]} 18... b5 {[%clk 0:01:25.5]} 19. Na5
{[%clk 0:02:16.5]} 19... Nb8 {[%clk 0:01:16.1]} 20. b4 {[%clk 0:02:08.6]} 20...
c6 {[%clk 0:01:07.3]} 21. Rd3 {[%clk 0:02:00.1]} 21... Bc7 {[%clk 0:01:02.3]}
22. Bc5+ {[%clk 0:01:57.8]} 22... Kf6 {[%clk 0:01:00.9]} 23. Nb3 {[%clk
0:01:57.7]} 23... Rd8 {[%clk 0:00:54.2]} 24. Rxd8 {[%clk 0:01:23.8]} 24... Bxd8
{[%clk 0:00:53]} 25. Rd1 {[%clk 0:01:24.7]} 25... Be7 {[%clk 0:00:40.9]} 26. a5
{[%clk 0:01:18.4]} 26... Kf7 {[%clk 0:00:28]} 27. Bb6 {[%clk 0:01:09.3]} 27...
Ke8 {[%clk 0:00:26.5]} 28. Nc5 {[%clk 0:00:58.4]} 28... Bxc5 {[%clk 0:00:23.4]}
29. Rd8+ {[%clk 0:00:54.9]} 29... Ke7 {[%clk 0:00:23]} 30. bxc5 {[%clk
0:00:55.2]} 30... g5 {[%clk 0:00:21.3]} 31. g4 {[%clk 0:00:47.8]} 1-0

[Event "*** SCC Grand Prix: Titled Tuesday Blitz"]
[Site "Chess.com"]
[Date "2020.10.06"]
[Round "3"]
[White "MasterSonnevanck23"]
[Black "zurzan"]
[Result "1-0"]
[WhiteElo "2363"]
[BlackElo "1925"]
[TimeControl "180+1"]
[EndTime "10:26:20 PDT"]
[Termination "MasterSonnevanck23 won on time"]

1. Nf3 {[%clk 0:03:00.9]} 1... d6 {[%clk 0:02:58.9]} 2. d4 {[%clk 0:02:59.7]}
2... f5 {[%clk 0:02:58.6]} 3. c4 {[%clk 0:02:58.8]} 3... Nf6 {[%clk 0:02:58.7]}
4. g3 {[%clk 0:02:58.9]} 4... g6 {[%clk 0:02:59]} 5. Bg2 {[%clk 0:02:59.3]} 5...
Bg7 {[%clk 0:02:59.9]} 6. O-O {[%clk 0:02:59.4]} 6... O-O {[%clk 0:03:00.8]} 7.
Nc3 {[%clk 0:02:59.5]} 7... c6 {[%clk 0:03:01.7]} 8. b3 {[%clk 0:02:56.9]} 8...
Na6 {[%clk 0:02:59.3]} 9. Bb2 {[%clk 0:02:44.2]} 9... Qc7 {[%clk 0:02:59.3]} 10.
d5 {[%clk 0:02:38.5]} 10... Nc5 {[%clk 0:02:50.7]} 11. Nd4 {[%clk 0:02:35.2]}
11... e5 {[%clk 0:02:35.8]} 12. dxe6 {[%clk 0:02:17.2]} 12... Nxe6 {[%clk
0:02:35.8]} 13. e3 {[%clk 0:02:05.4]} 13... Nxd4 {[%clk 0:02:31.6]} 14. Qxd4
{[%clk 0:01:48.5]} 14... Ng4 {[%clk 0:02:12.4]} 15. Qd2 {[%clk 0:01:43.9]} 15...
Be6 {[%clk 0:02:05.6]} 16. Rad1 {[%clk 0:01:36.9]} 16... Rad8 {[%clk 0:02:04.8]}
17. Ne2 {[%clk 0:01:32]} 17... Bxb2 {[%clk 0:02:01.8]} 18. Qxb2 {[%clk
0:01:30.2]} 18... d5 {[%clk 0:01:48.1]} 19. Nf4 {[%clk 0:01:28.8]} 19... Bf7
{[%clk 0:01:26.4]} 20. cxd5 {[%clk 0:01:28]} 20... cxd5 {[%clk 0:01:26]} 21. Qd4
{[%clk 0:01:16]} 21... Qa5 {[%clk 0:01:11.1]} 22. Rd2 {[%clk 0:01:15.1]} 22...
Rfe8 {[%clk 0:00:39.8]} 23. Rfd1 {[%clk 0:01:10]} 23... Ne5 {[%clk 0:00:33.4]}
24. Qb2 {[%clk 0:00:55.4]} 24... Nc6 {[%clk 0:00:07.8]} 25. Nxd5 {[%clk
0:00:52.7]} 1-0

[Event "*** SCC Grand Prix: Titled Tuesday Blitz"]
[Site "Chess.com"]
[Date "2020.10.06"]
[Round "3"]
[White "PattyCastillo"]
[Black "AniJak"]
[Result "0-1"]
[WhiteElo "2011"]
[BlackElo "2366"]
[TimeControl "180+1"]
[EndTime "10:26:24 PDT"]
[Termination "AniJak won by resignation"]

1. d4 {[%clk 0:03:00.9]} 1... d5 {[%clk 0:03:00.1]} 2. Nf3 {[%clk 0:03:00.7]}
2... Nf6 {[%clk 0:02:59.2]} 3. e3 {[%clk 0:03:00.6]} 3... e6 {[%clk 0:02:58.3]}
4. Bd3 {[%clk 0:03:00.2]} 4... c5 {[%clk 0:02:57.7]} 5. b3 {[%clk 0:03:00.3]}
5... Nc6 {[%clk 0:02:57.2]} 6. Bb2 {[%clk 0:03:00.2]} 6... cxd4 {[%clk
0:02:56.3]} 7. exd4 {[%clk 0:03:00.2]} 7... Be7 {[%clk 0:02:55.9]} 8. O-O {[%clk
0:03:00.2]} 8... O-O {[%clk 0:02:55.8]} 9. Nbd2 {[%clk 0:02:59.7]} 9... a6
{[%clk 0:02:56]} 10. a3 {[%clk 0:02:58.4]} 10... b5 {[%clk 0:02:56]} 11. Re1
{[%clk 0:02:57.9]} 11... Bb7 {[%clk 0:02:55.5]} 12. Ne5 {[%clk 0:02:57.3]} 12...
Rc8 {[%clk 0:02:55.1]} 13. Rc1 {[%clk 0:02:56.6]} 13... Nd7 {[%clk 0:02:53.2]}
14. Qe2 {[%clk 0:02:52.6]} 14... Bf6 {[%clk 0:02:51.9]} 15. f4 {[%clk
0:02:49.8]} 15... g6 {[%clk 0:02:50.4]} 16. Ndf3 {[%clk 0:02:46.5]} 16... Bg7
{[%clk 0:02:43.2]} 17. Nxd7 {[%clk 0:02:37]} 17... Qxd7 {[%clk 0:02:43]} 18. Ne5
{[%clk 0:02:37.4]} 18... Qd8 {[%clk 0:02:36.5]} 19. Qf2 {[%clk 0:02:24.1]} 19...
Re8 {[%clk 0:02:35.4]} 20. Qg3 {[%clk 0:02:09.4]} 20... Qb6 {[%clk 0:02:29.7]}
21. Nxc6 {[%clk 0:02:05.4]} 21... Qxc6 {[%clk 0:02:27.5]} 22. Re2 {[%clk
0:01:43.5]} 22... Qb6 {[%clk 0:02:27]} 23. c3 {[%clk 0:01:43.3]} 23... a5 {[%clk
0:02:18.2]} 24. b4 {[%clk 0:01:36]} 24... axb4 {[%clk 0:02:16.4]} 25. axb4
{[%clk 0:01:34.8]} 25... Ra8 {[%clk 0:02:16.3]} 26. Rce1 {[%clk 0:01:29.4]}
26... Bc6 {[%clk 0:02:08.1]} 27. h4 {[%clk 0:01:22.2]} 27... Ra2 {[%clk
0:02:02.7]} 28. h5 {[%clk 0:01:21.2]} 28... Ra7 {[%clk 0:01:57.1]} 29. hxg6
{[%clk 0:01:20.6]} 29... hxg6 {[%clk 0:01:56.5]} 30. f5 {[%clk 0:01:15.6]} 30...
gxf5 {[%clk 0:01:55.1]} 31. Bxf5 {[%clk 0:01:11]} 31... Kf8 {[%clk 0:01:54.6]}
32. Bb1 {[%clk 0:01:00.3]} 32... e5 {[%clk 0:01:53.6]} 33. Rf2 {[%clk
0:00:52.6]} 33... exd4 {[%clk 0:01:46.4]} 34. Rxe8+ {[%clk 0:00:51.4]} 34...
Bxe8 {[%clk 0:01:46.3]} 35. cxd4 {[%clk 0:00:42.4]} 35... Re7 {[%clk 0:01:37.1]}
36. Bd3 {[%clk 0:00:16.4]} 36... Qh6 {[%clk 0:01:32]} 37. Rf1 {[%clk 0:00:14.3]}
37... Re3 {[%clk 0:01:23.1]} 38. Qf4 {[%clk 0:00:04.4]} 38... Qxf4 {[%clk
0:01:20.7]} 39. Rxf4 {[%clk 0:00:03.7]} 39... Rxd3 {[%clk 0:01:21]} 0-1